bitfinex/quotes_SOLUSD_20241118
["timestamp","ask_amount","ask_price","bid_price","bid_amount"]
[1731942149771,94.1283,242.23,242.11,0.09367462]
[1731942149772,70.0,242.18,242.11,19.69273441]
[1731942150274,160.0,242.21,242.17,19.69273441]
[1731942150275,20.0,242.21,242.17,19.69273441]
[1731942150870,4.128,242.25,242.17,19.69273441]
[1731942151076,4.128,242.25,242.19,19.69273441]
[1731942151669,70.0,242.24,242.19,19.69273441]
[1731942151873,70.0,242.24,242.17,19.69273441]
[1731942152062,4.1283,242.23,242.17,19.69273441]
[1731942152882,160.0,242.3,242.21,19.69273441]
[1731942153061,70.0,242.31,242.27,19.69273441]
[1731942153782,70.0,242.27,242.22,19.69273441]
[1731942153962,70.0,242.27,242.2,19.69273441]
[1731942154152,74.1276,242.27,242.2,19.69273441]
[1731942154356,74.1276,242.27,242.22,19.69273441]
[1731942154780,74.1276,242.27,242.2,19.69273441]
[1731942154985,70.0,242.2,242.16,19.69273441]
[1731942155170,70.0,242.17,242.12,19.69273441]
[1731942155362,230.0,242.2,242.12,19.69273441]
[1731942155565,230.0,242.2,242.14,19.69273441]
[1731942156159,70.0,242.23,242.18,19.69273441]
[1731942156360,70.0,242.23,242.2,19.69273441]
[1731942156561,70.0,242.23,242.16,19.69273441]
[1731942157377,4.1282,242.24,242.18,19.69273441]
[1731942157587,70.0,242.23,242.18,19.69273441]
[1731942157765,4.1284,242.22,242.18,19.69273441]
[1731942158173,4.1284,242.22,242.13,10.3249]
[1731942158174,24.1284,242.22,242.14,19.69273441]
[1731942158386,24.1284,242.22,242.18,19.69273441]
[1731942158864,230.0,242.26,242.18,19.69273441]
[1731942159060,230.0,242.26,242.2,19.69273441]
[1731942159061,20.0,242.25,242.2,19.69273441]
[1731942159282,4.1279,242.26,242.2,19.69273441]
[1731942159479,4.1275,242.28,242.22,19.69273441]
[1731942160089,4.1272,242.3,242.24,19.69273441]
[1731942160387,4.1269,242.32,242.26,19.69273441]
[1731942160571,70.0,242.29,242.22,19.69273441]
[1731942160970,70.0,242.25,242.18,19.69273441]
[1731942161694,4.1281,242.24,242.16,23.82203441]
[1731942161985,4.1281,242.24,242.16,19.69273441]
[1731942162292,4.1279,242.26,242.2,19.69273441]
[1731942162794,4.1279,242.26,242.18,19.69273441]
[1731942163493,4.1279,242.26,242.18,23.82183441]
[1731942163695,70.0,242.25,242.18,19.69273441]
[1731942163987,70.0,242.25,242.16,30.01643441]
[1731942164403,19.69273441,242.22,242.12,19.69273441]
[1731942164693,70.0,242.23,242.14,19.69273441]
[1731942164889,20.0,242.23,242.16,19.69273441]
[1731942165496,74.1284,242.22,242.16,19.69273441]
[1731942165687,74.1284,242.22,242.14,19.69273441]
[1731942165989,70.0,242.19,242.12,19.69273441]
[1731942166178,70.0,242.19,242.11,10.3254]
[1731942166376,70.0,242.19,242.12,19.69273441]
[1731942167272,70.0,242.19,242.1,4.1304]
[1731942167273,4.1291,242.18,242.1,23.82313441]
[1731942167472,4.1291,242.18,242.12,19.69273441]
[1731942168504,24.1288,242.2,242.12,19.69273441]
[1731942168791,0.5,260.04,242.18,19.69273441]
[1731942168792,70.0,242.28,242.18,19.69273441]
[1731942168976,172.7447,242.31,242.24,19.69273441]
[1731942169171,4.1269,242.31,242.24,19.69273441]
[1731942169374,4.1269,242.31,242.22,19.69273441]
[1731942169375,70.0,242.3,242.22,19.69273441]
[1731942169884,70.0,242.3,242.2,19.69273441]
[1731942169885,70.0,242.27,242.2,19.69273441]
[1731942170090,89.69273441,242.3,242.2,19.69273441]
[1731942170304,4.1272,242.29,242.2,19.69273441]
[1731942170589,20.0,242.26,242.18,19.69273441]
[1731942170889,19.69273441,242.28,242.17,4.22287462]
[1731942171093,19.69273441,242.28,242.2,19.69273441]
[1731942171306,70.0,242.27,242.2,19.69273441]
[1731942172200,4.1277,242.26,242.2,19.69273441]
[1731942173410,20.0,242.29,242.2,19.69273441]
[1731942173581,20.0,242.29,242.22,19.69273441]
[1731942173899,20.0,242.29,242.24,19.69273441]
[1731942174080,4.1272,242.3,242.24,19.69273441]
[1731942174876,4.1272,242.3,242.22,23.82113441]
[1731942175081,93.81993441,242.3,242.22,19.69273441]
[1731942175401,20.0,242.29,242.2,30.01473441]
[1731942175801,20.0,242.29,242.2,34.14353441]
[1731942176883,19.69273441,242.26,242.17,0.09367462]
[1731942177101,89.69273441,242.24,242.17,0.09367462]
[1731942177396,70.0,242.21,242.17,0.09367462]
[1731942178100,19.69273441,242.22,242.17,0.09367462]
[1731942179006,4.1286,242.21,242.17,0.09367462]
[1731942181381,74.1286,242.21,242.17,0.09367462]
[1731942181587,19.69273441,242.2,242.17,0.09367462]
[1731942182200,89.69273441,242.18,242.17,0.09367462]
[1731942182500,109.69273441,242.18,242.17,0.09367462]
[1731942182796,90.0,242.18,242.17,0.09367462]
[1731942183000,113.82183441,242.18,242.17,0.09367462]
[1731942183201,20.0,242.1,242.0,19.69273441]
[1731942183507,89.69273441,242.06,241.98,19.69273441]
[1731942184512,4.1313,242.05,241.96,54.03123441]
[1731942184891,70.0,242.03,241.94,30.02543441]
[1731942185301,70.0,242.03,241.94,19.69273441]
[1731942185605,89.69273441,241.98,241.9,19.69273441]
[1731942185783,90.0,241.95,241.84,43.2466]
[1731942185988,19.69273441,241.94,241.85,19.69273441]
[1731942186310,90.0,241.95,241.84,32.9094]
[1731942186311,89.69273441,241.92,241.84,32.9094]
[1731942186501,89.69273441,241.92,241.79,30.03223441]
[1731942186502,19.69273441,241.88,241.79,30.03223441]
[1731942186819,19.69273441,241.84,241.75,19.69273441]
[1731942187423,160.0,241.87,241.71,19.69273441]
[1731942187424,19.69273441,241.8,241.71,19.69273441]
[1731942187583,19.69273441,241.8,241.73,19.69273441]
[1731942187784,19.69273441,241.86,241.77,19.69273441]
[1731942187998,4.1335,241.93,241.85,19.69273441]
[1731942188199,89.69273441,242.0,241.92,19.69273441]
[1731942188409,30.0,241.93,241.92,19.69273441]
[1731942188613,70.0,242.03,241.92,23.82613441]
[1731942188927,19.69273441,242.0,241.93,23.776884]
[1731942189127,19.69273441,241.98,241.83,4.38608]
[1731942189416,179.69273441,242.02,241.9,0.09367462]
[1731942189584,89.69273441,242.02,241.95,19.69273441]
[1731942189917,4.1317,242.03,241.86,10.8362]
[1731942189918,89.69273441,241.98,241.89,19.69273441]
[1731942190091,89.69273441,241.98,241.9,23.776884]
[1731942190290,19.69273441,242.0,241.91,19.69273441]
[1731942190502,179.69273441,242.02,241.93,19.69273441]
[1731942190909,179.69273441,242.02,241.94,23.776884]
[1731942191107,23.82473441,242.02,241.94,23.776884]
[1731942191301,19.69273441,242.0,241.92,23.776884]
[1731942191507,70.0,242.08,241.99,19.69273441]
[1731942191709,4.1304,242.11,242.04,19.69273441]
[1731942192025,19.69273441,242.15,242.06,19.69273441]
[1731942192193,70.0,242.16,241.98,0.5]
[1731942192194,70.0,242.16,242.08,19.69273441]
[1731942192397,89.69273441,242.21,242.12,19.69273441]
[1731942192798,89.69273441,242.21,242.04,19.69273441]
[1731942192799,19.69273441,242.19,242.11,23.776884]
[1731942193114,70.0,242.18,242.1,19.69273441]
[1731942193811,89.69273441,242.15,242.07,10.3274]
[1731942194517,19.69273441,242.17,242.09,19.69273441]
[1731942195211,20.0,242.16,242.09,19.69273441]
[1731942195418,19.69273441,242.15,242.07,30.02013441]
[1731942195597,20.0,242.16,242.07,30.02013441]
[1731942195792,20.0,242.16,242.08,23.776884]
[1731942196014,20.0,242.16,242.09,19.69273441]
[1731942196520,70.0,242.17,242.11,19.69273441]
[1731942197513,70.0,242.17,242.08,23.776884]
[1731942197514,74.1285,242.22,242.14,19.69273441]
[1731942197822,19.69273441,242.23,242.14,19.78640903]
[1731942198120,93.82013441,242.29,242.2,19.69273441]
[1731942198614,19.69273441,242.23,242.15,23.776884]
[1731942198815,70.0,242.2,242.12,19.69273441]
[1731942199212,19.69273441,242.21,242.15,23.776884]
[1731942199395,19.69273441,242.19,242.12,10.3254]
[1731942199608,23.82143441,242.21,242.12,30.01813441]
[1731942199813,89.69273441,242.23,242.14,19.69273441]
[1731942200002,20.0,242.22,242.15,23.776884]
[1731942200523,20.0,242.22,242.14,19.69273441]
[1731942200713,19.69273441,242.19,242.13,23.776884]
[1731942200916,89.69273441,242.19,242.1,19.69273441]
[1731942201293,19.69273441,242.17,242.1,23.776884]
[1731942201696,19.69273441,242.17,242.09,23.87055862]
[1731942202011,4.1291,242.18,242.1,19.69273441]
[1731942202395,4.1291,242.18,242.09,0.09367462]
[1731942202396,19.69273441,242.19,242.12,19.69273441]
[1731942202594,4.128,242.25,242.18,19.69273441]
[1731942204119,23.82073441,242.25,242.16,19.69273441]
[1731942204315,70.0,242.23,242.16,19.69273441]
[1731942204622,19.69273441,242.21,242.12,19.69273441]
[1731942204998,74.1279,242.26,242.17,0.09367462]
[1731942205202,74.1279,242.26,242.16,19.69273441]
[1731942205203,19.69273441,242.25,242.16,19.69273441]
[1731942205416,70.0,242.26,242.16,19.69273441]
[1731942205721,23.82073441,242.25,242.16,19.69273441]
[1731942205924,23.82073441,242.25,242.14,10.3244]
[1731942205925,89.69273441,242.23,242.14,30.01713441]
[1731942206310,19.69273441,242.21,242.13,23.776884]
[1731942206501,89.69273441,242.19,242.1,19.69273441]
[1731942206922,89.69273441,242.19,242.0,0.5]
[1731942206923,19.69273441,242.15,242.06,19.69273441]
[1731942207131,89.69273441,242.13,242.04,19.69273441]
[1731942207622,4.1301,242.12,242.04,19.69273441]
[1731942208009,4.1301,242.12,242.06,19.69273441]
[1731942208428,70.0,242.16,242.08,19.69273441]
[1731942208809,70.0,242.13,242.06,19.69273441]
[1731942209119,20.0,242.16,242.08,19.69273441]
[1731942209422,4.1294,242.17,242.1,19.69273441]
[1731942209796,19.69273441,242.22,242.14,19.69273441]
[1731942210011,89.69273441,242.24,242.14,19.69273441]
[1731942210400,93.82093441,242.24,242.16,19.69273441]
[1731942210600,74.1282,242.24,242.16,19.69273441]
[1731942210903,93.82093441,242.24,242.16,19.69273441]
[1731942212003,19.69273441,242.22,242.13,23.776884]
[1731942212303,19.69273441,242.18,242.1,30.01903441]
[1731942212501,19.69273441,242.16,242.08,19.69273441]
[1731942212720,19.69273441,242.16,242.08,23.82343441]
[1731942213028,89.69273441,242.14,242.04,23.82413441]
[1731942213216,70.0,242.11,242.04,19.69273441]
[1731942213415,70.0,242.11,242.02,4.1317]
[1731942213416,19.69273441,242.1,242.02,19.69273441]
[1731942213822,70.0,242.08,242.02,19.69273441]
[1731942214024,70.0,242.08,241.99,23.82503441]
[1731942214337,19.69273441,242.01,241.91,19.69273441]
[1731942214503,19.69273441,242.03,241.93,19.69273441]
[1731942214704,19.69273441,242.03,241.95,19.69273441]
[1731942215623,19.69273441,242.03,241.85,0.5]
[1731942215624,70.0,242.01,241.93,19.69273441]
[1731942216026,160.0,242.06,241.95,19.69273441]
[1731942216027,4.1316,242.04,241.95,19.69273441]
[1731942216528,19.69273441,242.09,242.0,0.09367462]
[1731942216705,70.0,242.07,242.03,19.69273441]
[1731942216905,4.1302,242.12,242.05,19.69273441]
[1731942217209,4.1302,242.12,242.06,23.776884]
[1731942217617,89.69273441,242.17,242.08,19.69273441]
[1731942217824,4.1295,242.16,242.08,19.69273441]
[1731942218001,70.0,242.14,242.08,19.69273441]
[1731942218510,4.1295,242.16,242.08,19.69273441]
[1731942219015,4.1295,242.16,242.09,30.11]
[1731942221044,4.1295,242.16,242.04,30.4378]
[1731942221045,70.0,242.1,242.04,30.4378]
[1731942221217,89.69273441,242.1,242.04,30.4378]
[1731942221410,70.0,242.1,242.04,30.4378]
[1731942221732,19.69273441,242.09,242.04,30.4378]
[1731942221919,19.69273441,242.15,242.07,12.26817462]
[1731942222227,23.82213441,242.17,242.09,0.09367462]
[1731942222428,19.69273441,242.15,242.09,0.09367462]
[1731942222734,89.69273441,242.15,242.08,23.776884]
[1731942223311,4.1298,242.14,242.08,23.776884]
[1731942223518,19.69273441,242.13,242.08,23.776884]
[1731942224216,19.69273441,242.11,242.04,30.4378]
[1731942224435,19.69273441,242.11,242.05,23.776884]
[1731942224610,4.1298,242.14,242.06,0.09367462]
[1731942224611,19.69273441,242.13,242.06,0.09367462]
[1731942225213,4.1298,242.14,242.07,23.776884]
[1731942226312,4.1301,242.12,242.06,23.87055862]
[1731942227218,4.1301,242.12,242.05,23.776884]
[1731942229332,19.69273441,242.11,242.05,23.776884]
[1731942229835,19.69273441,242.11,242.04,30.4378]
[1731942231117,4.1305,242.1,242.04,30.4378]
[1731942233338,89.69273441,242.09,242.04,30.4378]
[1731942233644,19.69273441,242.07,242.04,30.4378]
[1731942235143,23.82373441,242.07,242.04,30.4378]
[1731942235454,93.82343441,242.09,242.04,30.4378]
[1731942236138,93.82343441,242.09,242.0,23.82483441]
[1731942236345,93.82343441,242.09,242.01,23.87055862]
[1731942236857,93.82343441,242.09,241.94,0.5]
[1731942236858,23.82473441,242.02,241.93,31.9555]
[1731942237022,19.69273441,241.96,241.93,31.9555]
[1731942237521,19.69273441,241.94,241.89,16.7482]
[1731942237725,19.69273441,241.94,241.89,12.6142]
[1731942237943,19.69273441,241.92,241.89,0.09367462]
[1731942238145,19.69273441,241.9,241.86,33.221]
[1731942238648,19.69273441,241.88,241.79,33.221]
[1731942238853,19.69273441,241.81,241.79,33.221]
[1731942239237,19.69273441,241.81,241.77,12.6704]
[1731942239443,19.69273441,241.81,241.74,4.1366]
[1731942239634,19.69273441,241.81,241.75,0.09367462]
[1731942240126,19.69273441,241.81,241.74,4.1366]
[1731942240346,190.0,241.89,241.75,19.69273441]
[1731942240347,19.69273441,241.84,241.75,19.69273441]
[1731942240544,19.69273441,241.84,241.76,0.09367462]
[1731942240847,23.82773441,241.84,241.76,0.09367462]
[1731942241049,19.69273441,241.8,241.74,10.3416]
[1731942241353,19.69273441,241.78,241.73,30.8099]
[1731942241553,19.69273441,241.78,241.74,0.09367462]
[1731942241847,19.69273441,241.8,241.73,30.8099]
[1731942242149,19.69273441,241.82,241.73,41.152]
[1731942242348,19.69273441,241.8,241.74,0.09367462]
[1731942242727,19.69273441,241.86,241.78,0.09367462]
[1731942243040,34.1341,241.89,241.82,0.09367462]
[1731942243232,30.0,241.89,241.82,0.09367462]
[1731942243427,19.69273441,241.96,241.88,0.09367462]
[1731942243639,19.69273441,242.0,241.91,19.69273441]
[1731942243843,19.69273441,242.02,241.94,23.99604862]
[1731942244131,19.69273441,242.04,241.96,23.87055862]
[1731942244332,23.82433441,242.04,241.96,23.87055862]
[1731942244533,19.69273441,242.02,241.95,23.87055862]
[1731942244749,19.69273441,242.0,241.95,0.09367462]
[1731942244933,19.69273441,242.0,241.94,23.776884]
[1731942245251,19.69273441,242.02,241.95,0.09367462]
[1731942246545,4.132,242.01,241.95,0.09367462]
[1731942247251,19.69273441,242.04,241.97,0.09367462]
[1731942247439,19.69273441,242.0,241.96,23.776884]
[1731942247837,19.69273441,242.02,241.94,23.87055862]
[1731942248238,19.69273441,242.02,241.96,0.09367462]
[1731942248443,19.69273441,242.02,241.96,23.87055862]
[1731942249041,19.69273441,242.04,241.96,28.00335862]
[1731942249256,230.0,242.13,242.03,19.69273441]
[1731942249563,19.69273441,242.13,242.06,23.776884]
[1731942249748,4.1294,242.17,242.1,19.69273441]
[1731942249938,19.69273441,242.19,242.11,23.776884]
[1731942249939,23.82173441,242.19,242.11,23.776884]
[1731942250136,23.82173441,242.19,242.09,0.09367462]
[1731942250137,19.69273441,242.17,242.09,23.87055862]
[1731942250337,74.129,242.19,242.09,23.87055862]
[1731942250338,19.69273441,242.15,242.09,0.09367462]
[1731942250852,4.1298,242.14,242.09,0.09367462]
[1731942251049,19.69273441,242.11,242.02,54.40143441]
[1731942251246,19.69273441,242.11,242.05,0.09367462]
[1731942251569,4.1291,242.18,242.08,23.87055862]
[1731942251858,19.69273441,242.1,242.01,19.69273441]
[1731942252235,19.69273441,242.1,241.99,4.1323]
[1731942252236,19.69273441,242.08,241.99,19.69273441]
[1731942252841,23.82363441,242.08,241.99,23.82503441]
[1731942253363,23.82333441,242.1,242.01,23.82473441]
[1731942253561,23.82333441,242.1,242.03,23.776884]
[1731942254250,23.82333441,242.1,242.04,0.09367462]
[1731942255345,23.82333441,242.1,242.03,23.776884]
[1731942255763,19.69273441,242.1,242.04,0.09367462]
[1731942255963,19.69273441,242.16,242.07,23.87055862]
[1731942256261,4.1293,242.17,242.09,23.87055862]
[1731942256967,23.82163441,242.2,242.12,19.69273441]
[1731942257171,19.69273441,242.28,242.2,0.09367462]
[1731942257464,85.71626841,242.33,242.2,23.776884]
[1731942257465,19.69273441,242.26,242.2,23.776884]
[1731942257764,19.69273441,242.26,242.18,23.776884]
[1731942257963,19.69273441,242.26,242.2,23.776884]
[1731942258345,89.69273441,242.3,242.22,23.776884]
[1731942258548,4.1272,242.3,242.24,23.776884]
[1731942258736,23.81953441,242.32,242.24,23.776884]
[1731942259169,19.69273441,242.32,242.26,23.776884]
[1731942259354,23.81923441,242.34,242.26,23.776884]
[1731942259563,19.69273441,242.32,242.26,23.776884]
[1731942259940,19.69273441,242.32,242.24,23.87055862]
[1731942260144,19.69273441,242.32,242.21,12.0723]
[1731942260145,19.69273441,242.28,242.22,23.776884]
[1731942260467,19.69273441,242.28,242.18,23.776884]
[1731942260468,19.69273441,242.26,242.18,23.776884]
[1731942260665,19.69273441,242.26,242.16,32.7827]
[1731942260666,19.69273441,242.24,242.16,32.7827]
[1731942260867,19.69273441,242.24,242.16,36.9121]
[1731942261073,19.69273441,242.28,242.2,0.09367462]
[1731942261374,23.81963441,242.32,242.24,0.09367462]
[1731942261659,23.81853441,242.38,242.3,0.09367462]
[1731942261871,19.69273441,242.34,242.26,23.776884]
[1731942262075,19.69273441,242.34,242.27,0.09367462]
[1731942262358,4.1263,242.35,242.27,19.91189903]
[1731942262559,4.1263,242.35,242.29,0.09367462]
[1731942262945,20.0,242.36,242.29,0.09367462]
[1731942263646,19.69273441,242.41,242.33,0.09367462]
[1731942263844,19.69273441,242.43,242.35,0.09367462]
[1731942264061,19.69273441,242.43,242.35,23.87055862]
[1731942264368,19.69273441,242.41,242.33,27.903384]
[1731942264571,4.125,242.42,242.36,0.09367462]
[1731942264769,4.1248,242.44,242.36,19.78640903]
[1731942265065,4.1248,242.44,242.37,23.776884]
[1731942265956,4.1248,242.44,242.35,23.87055862]
[1731942266148,19.69273441,242.39,242.3,52.43273441]
[1731942266963,19.69273441,242.39,242.31,0.09367462]
[1731942267842,19.69273441,242.35,242.24,30.6414]
[1731942268041,19.69273441,242.35,242.26,19.69273441]
[1731942268270,4.1257,242.38,242.3,19.69273441]
[1731942268566,4.125,242.42,242.34,19.69273441]
[1731942268750,19.69273441,242.41,242.33,0.09367462]
[1731942269153,19.69273441,242.39,242.31,0.09367462]
[1731942269471,19.69273441,242.33,242.23,32.62033441]
[1731942269770,19.69273441,242.35,242.27,19.69273441]
[1731942270070,70.0,242.39,242.27,19.69273441]
[1731942270071,20.0,242.37,242.28,0.09367462]
[1731942270251,20.0,242.37,242.27,23.82023441]
[1731942270657,19.69273441,242.36,242.28,0.09367462]
[1731942271086,4.1262,242.35,242.28,23.87055862]
[1731942271452,4.1262,242.35,242.3,0.09367462]
[1731942272163,4.1262,242.35,241.62,89.17031217]
[1731942272164,70.0,242.33,242.14,0.5]
[1731942272351,19.69273441,242.34,242.25,19.69273441]
[1731942272554,4.1262,242.35,242.26,0.09367462]
[1731942272760,4.1262,242.35,242.27,19.69273441]
[1731942273149,4.1262,242.35,242.26,0.09367462]
[1731942273570,19.69273441,242.34,242.26,0.09367462]
[1731942273768,19.69273441,242.32,242.22,23.776884]
[1731942273989,19.69273441,242.32,242.25,0.09367462]
[1731942274281,39.69273441,242.34,242.27,0.09367462]
[1731942274478,19.69273441,242.34,242.27,0.09367462]
[1731942274658,4.1262,242.35,242.27,0.09367462]
[1731942274659,4.1262,242.35,242.28,23.776884]
[1731942274858,4.1262,242.35,242.29,0.09367462]
[1731942275458,19.69273441,242.42,242.33,0.09367462]
[1731942276380,19.69273441,242.44,242.35,0.09367462]
[1731942276577,23.81743441,242.44,242.37,0.09367462]
[1731942276777,19.69273441,242.5,242.43,0.09367462]
[1731942276970,23.81583441,242.54,242.45,19.91189903]
[1731942277162,19.69273441,242.56,242.49,0.09367462]
[1731942277475,70.0,242.59,242.49,0.09367462]
[1731942277476,23.81513441,242.58,242.51,0.09367462]
[1731942279260,20.0,242.59,242.53,19.78640903]
[1731942279453,20.0,242.59,242.54,23.776884]
[1731942279884,19.69273441,242.58,242.54,23.776884]
[1731942280466,19.69273441,242.58,242.48,24.12153862]
[1731942280976,19.69273441,242.56,242.48,23.87055862]
[1731942281178,19.69273441,242.56,242.5,0.09367462]
[1731942281379,4.1225,242.57,242.5,23.87055862]
[1731942281774,24.1222,242.59,242.52,0.09367462]
[1731942281972,24.1222,242.59,242.54,0.09367462]
[1731942282359,4.1219,242.61,242.54,23.87055862]
[1731942282580,19.69273441,242.64,242.56,23.87055862]
[1731942282979,19.69273441,242.68,242.6,0.09367462]
[1731942283159,19.69273441,242.68,242.59,19.94371441]
[1731942283160,23.81283441,242.71,242.62,23.87055862]
[1731942283876,23.81283441,242.71,242.62,23.776884]
[1731942284184,4.1206,242.68,242.61,19.69273441]
[1731942284679,4.1206,242.68,242.6,0.09367462]
[1731942284875,19.69273441,242.65,242.55,19.81822441]
[1731942285264,19.69273441,242.63,242.53,19.69273441]
[1731942285475,19.69273441,242.63,242.54,0.09367462]
[1731942286079,19.69273441,242.65,242.58,0.09367462]
[1731942286273,20.0,242.66,242.58,0.09367462]
[1731942286784,19.69273441,242.63,242.56,23.902374]
[1731942286988,19.69273441,242.65,242.57,0.09367462]
[1731942287580,4.1208,242.67,242.61,19.69273441]
[1731942287969,4.1208,242.67,242.62,23.776884]
[1731942289578,23.81353441,242.67,242.59,19.69273441]
[1731942289875,23.81353441,242.67,242.57,19.69273441]
[1731942290071,19.69273441,242.65,242.57,19.69273441]
[1731942290274,4.1213,242.64,242.57,23.776884]
[1731942290482,19.69273441,242.63,242.55,19.69273441]
[1731942291084,4.1213,242.64,242.56,0.09367462]
[1731942291287,4.1211,242.66,242.59,19.69273441]
[1731942291485,4.1211,242.66,242.55,14.4299]
[1731942291486,70.0,242.79,242.66,0.21916462]
[1731942291686,4.1189,242.78,242.72,19.69273441]
[1731942292076,4.1169,242.9,242.77,24.027864]
[1731942292305,19.69273441,242.87,242.79,0.21916462]
[1731942292582,19.69273441,242.87,242.79,23.99604862]
[1731942292790,19.69273441,242.89,242.79,23.776884]
[1731942293084,19.69273441,242.85,242.79,23.776884]
[1731942293287,4.1169,242.9,242.8,0.21916462]
[1731942293488,3.54630082,242.98,242.89,0.21916462]
[1731942293793,172.9289,243.14,242.83,0.5]
[1731942293794,23.80653441,243.08,242.98,0.21916462]
[1731942293996,160.0,243.07,242.97,19.69273441]
[1731942294179,4.1138,243.08,242.99,19.78640903]
[1731942294377,70.0,243.09,243.01,19.69273441]
[1731942294685,10.7804,243.18,243.02,31.71222857]
[1731942294686,4.1136,243.1,243.02,31.71222857]
[1731942294885,31.71222857,243.14,243.04,31.71222857]
[1731942295075,70.0,243.17,243.06,31.71222857]
[1731942295076,4.1126,243.15,243.06,31.71222857]
[1731942295270,31.71222857,243.16,243.07,0.21916462]
[1731942295579,31.71222857,243.18,243.09,24.12153862]
[1731942296603,31.71222857,243.18,243.09,0.34465462]
[1731942297188,31.71222857,243.18,243.05,10.2859]
[1731942297189,31.71222857,243.14,243.06,0.25098]
[1731942297396,31.71222857,243.14,243.06,0.12549]
[1731942297881,35.82452857,243.18,243.09,0.21916462]
[1731942298189,70.0,243.25,243.13,31.71222857]
[1731942298392,31.71222857,243.23,243.14,0.12549]
[1731942298892,31.71222857,243.23,243.15,0.09367462]
[1731942299070,35.82292857,243.27,243.17,32.05688319]
[1731942300183,35.82292857,243.27,243.17,31.93139319]
[1731942300386,31.71222857,243.21,243.14,0.12549]
[1731942300780,31.71222857,243.16,243.06,31.71222857]
[1731942301789,31.71222857,243.16,243.08,31.71222857]
[1731942302299,4.1126,243.15,243.06,31.71222857]
[1731942302488,31.71222857,243.1,243.01,31.71222857]
[1731942302677,31.71222857,243.1,242.99,35.82742857]
[1731942302996,31.71222857,243.07,242.99,35.82742857]
[1731942303180,31.71222857,243.07,242.99,4.1152]
[1731942303780,31.71222857,243.07,243.0,0.09367462]
[1731942303981,31.71222857,243.09,243.02,0.09367462]
[1731942304496,31.71222857,243.09,243.02,0.34465462]
[1731942304991,31.71222857,243.07,243.02,24.12153862]
[1731942305185,31.71222857,243.05,242.98,12.6812]
[1731942305368,70.0,243.08,242.95,4.116]
[1731942305369,31.71222857,243.03,242.95,4.116]
[1731942305774,31.71222857,243.01,242.95,4.116]
[1731942306194,31.71222857,243.03,242.96,0.09367462]
[1731942306575,31.71222857,242.99,242.9,17.1085]
[1731942306770,31.71222857,242.97,242.9,17.1085]
[1731942306995,31.71222857,242.95,242.88,14.4101]
[1731942307698,31.71222857,242.95,242.88,10.2929]
[1731942307908,31.71222857,242.93,242.85,32.3908]
[1731942308113,31.71222857,242.91,242.83,16.6295]
[1731942308299,31.71222857,242.91,242.83,48.34172857]
[1731942308505,31.71222857,242.98,242.89,31.71222857]
[1731942308694,31.71222857,242.98,242.9,0.09367462]
[1731942309394,31.71222857,242.98,242.9,24.027864]
[1731942309713,31.71222857,242.98,242.91,0.09367462]
[1731942310015,31.71222857,242.98,242.93,0.21916462]
[1731942310218,31.71222857,243.0,242.93,0.21916462]
[1731942310523,70.0,243.04,242.93,0.21916462]
[1731942310524,31.71222857,243.08,242.99,31.80590319]
[1731942310706,31.71222857,243.1,243.03,0.12549]
[1731942310919,30.0,243.04,243.03,0.12549]
[1731942311302,4.1128,243.14,243.04,23.902374]
[1731942311303,31.71222857,243.14,243.04,23.902374]
[1731942311536,31.71222857,243.14,243.07,0.25098]
[1731942311722,31.71222857,243.12,243.07,0.25098]
[1731942312017,31.71222857,243.12,243.05,0.12549]
[1731942312312,31.71222857,243.08,243.01,0.12549]
[1731942312498,31.71222857,243.02,242.93,31.71222857]
[1731942312703,31.71222857,243.02,242.94,4.1162]
[1731942312904,31.71222857,243.02,242.95,4.1159]
[1731942313094,31.71222857,243.02,242.93,35.82852857]
[1731942313290,31.71222857,243.02,242.95,4.1159]
[1731942313694,31.71222857,243.02,242.96,0.09367462]
[1731942313907,31.71222857,243.04,242.96,0.09367462]
[1731942314110,31.71222857,243.06,242.96,0.09367462]
[1731942314313,4.1141,243.07,242.96,0.09367462]
[1731942314314,31.71222857,243.04,242.96,0.09367462]
[1731942314698,31.71222857,243.04,242.96,23.87055862]
[1731942314898,31.71222857,243.04,242.98,0.09367462]
[1731942315101,31.71222857,243.08,242.98,55.58278719]
[1731942315317,35.82502857,243.14,243.05,0.09367462]
[1731942315695,35.82502857,243.14,243.05,0.21916462]